[Event "*** Titled Tuesday 3|2 Blitz (Early)"]
[Site "Chess.com"]
[Date "2016.11.01"]
[Round "2"]
[White "Matibar"]
[Black "Fandorine"]
[Result "1/2-1/2"]
[WhiteElo "2562"]
[BlackElo "2633"]
[TimeControl "180+2"]
[EndTime "11:21:57 PDT"]
[Termination "Game drawn by stalemate"]

1. g3 {[%clk 0:02:58.3]} 1... g6 {[%clk 0:02:57.1]} 2. Bg2 {[%clk 0:02:57.1]}
2... Bg7 {[%clk 0:02:58.6]} 3. e4 {[%clk 0:02:57.9]} 3... e5 {[%clk 0:02:55.7]}
4. Ne2 {[%clk 0:02:50.1]} 4... Nf6 {[%clk 0:02:52.5]} 5. d4 {[%clk 0:02:44.1]}
5... d6 {[%clk 0:02:45]} 6. O-O {[%clk 0:02:33.6]} 6... O-O {[%clk 0:02:38.2]}
7. Nbc3 {[%clk 0:02:34]} 7... Nbd7 {[%clk 0:02:37.8]} 8. h3 {[%clk 0:02:32.1]}
8... c6 {[%clk 0:02:34.4]} 9. a4 {[%clk 0:02:32.2]} 9... Re8 {[%clk 0:02:32.1]}
10. Bg5 {[%clk 0:02:32.1]} 10... h6 {[%clk 0:02:28.7]} 11. Be3 {[%clk
0:02:33.2]} 11... exd4 {[%clk 0:02:16.5]} 12. Nxd4 {[%clk 0:02:33.5]} 12... Nc5
{[%clk 0:02:17.8]} 13. f3 {[%clk 0:02:33.9]} 13... d5 {[%clk 0:02:03.3]} 14.
Nxc6 {[%clk 0:02:33.9]} 14... bxc6 {[%clk 0:02:04.1]} 15. Bxc5 {[%clk
0:02:35.1]} 15... Ba6 {[%clk 0:02:02.9]} 16. Re1 {[%clk 0:02:30.2]} 16... Qb8
{[%clk 0:01:58.7]} 17. exd5 {[%clk 0:02:15.5]} 17... Qxb2 {[%clk 0:01:47.3]} 18.
Bd4 {[%clk 0:01:51.1]} 18... Nxd5 {[%clk 0:01:41.6]} 19. Bxg7 {[%clk 0:01:51.2]}
19... Nxc3 {[%clk 0:01:28.8]} 20. Bxc3 {[%clk 0:01:35.1]} 20... Qxc3 {[%clk
0:01:30.7]} 21. Kh2 {[%clk 0:01:35.8]} 21... Red8 {[%clk 0:01:23.8]} 22. Qc1
{[%clk 0:01:21.6]} 22... Rd2 {[%clk 0:01:18.9]} 23. Ra3 {[%clk 0:01:23]} 23...
Qxc2 {[%clk 0:01:19.8]} 24. Qxc2 {[%clk 0:01:22.1]} 24... Rxc2 {[%clk
0:01:21.7]} 25. g4 {[%clk 0:01:11.3]} 25... Bc4 {[%clk 0:01:11.7]} 26. Kg3
{[%clk 0:01:06]} 26... Bd5 {[%clk 0:01:12.9]} 27. a5 {[%clk 0:01:04.6]} 27...
Kf8 {[%clk 0:01:01.5]} 28. h4 {[%clk 0:01:01.2]} 28... Re8 {[%clk 0:00:56.6]}
29. Rxe8+ {[%clk 0:00:59.9]} 29... Kxe8 {[%clk 0:00:58.5]} 30. g5 {[%clk
0:01:01.6]} 30... hxg5 {[%clk 0:00:56.2]} 31. hxg5 {[%clk 0:01:03.5]} 31... Kd7
{[%clk 0:00:50]} 32. Bf1 {[%clk 0:01:01.9]} 32... Ra2 {[%clk 0:00:44.9]} 33.
Rxa2 {[%clk 0:01:00.5]} 33... Bxa2 {[%clk 0:00:46.8]} 34. Kf4 {[%clk 0:01:01.2]}
34... Kd6 {[%clk 0:00:48.2]} 35. Ke3 {[%clk 0:00:58.9]} 35... Kc5 {[%clk
0:00:47.4]} 36. Bd3 {[%clk 0:00:34.7]} 36... Bc4 {[%clk 0:00:39.5]} 37. Be4
{[%clk 0:00:35.7]} 37... Bd5 {[%clk 0:00:33]} 38. Bd3 {[%clk 0:00:36.9]} 38...
Kb4 {[%clk 0:00:33]} 39. a6 {[%clk 0:00:37.8]} 39... Bc4 {[%clk 0:00:28.4]} 40.
Be4 {[%clk 0:00:39.1]} 40... Kc5 {[%clk 0:00:28.3]} 41. f4 {[%clk 0:00:40.1]}
41... Bxa6 {[%clk 0:00:29.2]} 42. f5 {[%clk 0:00:42]} 42... gxf5 {[%clk
0:00:29.8]} 43. Bxf5 {[%clk 0:00:43.9]} 43... Bc4 {[%clk 0:00:31.3]} 44. Kd2
{[%clk 0:00:43.7]} 44... a5 {[%clk 0:00:32.5]} 45. Kc3 {[%clk 0:00:44.5]} 45...
Bd5 {[%clk 0:00:33]} 46. g6 {[%clk 0:00:44.7]} 46... fxg6 {[%clk 0:00:33.2]} 47.
Bxg6 {[%clk 0:00:46.6]} 47... a4 {[%clk 0:00:33.8]} 48. Be8 {[%clk 0:00:47.3]}
48... a3 {[%clk 0:00:34.5]} 49. Kc2 {[%clk 0:00:48.3]} 49... Kb4 {[%clk
0:00:28.9]} 50. Bxc6 {[%clk 0:00:44.5]} 50... Bxc6 {[%clk 0:00:29.9]} 51. Kb1
{[%clk 0:00:45.6]} 51... Kb3 {[%clk 0:00:30.9]} 52. Ka1 {[%clk 0:00:46.8]} 52...
Bd5 {[%clk 0:00:32.7]} 53. Kb1 {[%clk 0:00:47.9]} 53... Be4+ {[%clk 0:00:34.5]}
54. Ka1 {[%clk 0:00:49.3]} 54... Bb1 {[%clk 0:00:36.3]} 55. Kxb1 {[%clk
0:00:50.3]} 55... a2+ {[%clk 0:00:38.2]} 56. Ka1 {[%clk 0:00:51.8]} 56... Ka3
{[%clk 0:00:40.1]} 1/2-1/2

[Event "*** Titled Tuesday 3|2 Blitz (Early)"]
[Site "Chess.com"]
[Date "2016.11.01"]
[Round "2"]
[White "fastestmindalive"]
[Black "Ginger_GM"]
[Result "1-0"]
[WhiteElo "2513"]
[BlackElo "2424"]
[TimeControl "180+2"]
[EndTime "11:21:58 PDT"]
[Termination "fastestmindalive won by resignation"]

1. e4 {[%clk 0:03:01.9]} 1... e6 {[%clk 0:03:00.3]} 2. b3 {[%clk 0:03:02.1]}
2... d5 {[%clk 0:03:00.8]} 3. Bb2 {[%clk 0:03:03.6]} 3... Nf6 {[%clk 0:03:01.8]}
4. e5 {[%clk 0:03:04.1]} 4... Nfd7 {[%clk 0:03:02.3]} 5. f4 {[%clk 0:03:06]}
5... c5 {[%clk 0:03:02.7]} 6. Qg4 {[%clk 0:03:02.5]} 6... Nc6 {[%clk 0:03:02.4]}
7. Nf3 {[%clk 0:03:03.9]} 7... h5 {[%clk 0:02:59.7]} 8. Qg3 {[%clk 0:03:04.7]}
8... Ne7 {[%clk 0:02:59.5]} 9. Be2 {[%clk 0:03:03]} 9... Nf5 {[%clk 0:02:59.2]}
10. Qf2 {[%clk 0:03:04.6]} 10... a6 {[%clk 0:02:58]} 11. O-O {[%clk 0:03:06.2]}
11... b5 {[%clk 0:02:58.2]} 12. Nc3 {[%clk 0:03:06.8]} 12... Bb7 {[%clk
0:02:58.6]} 13. Nd1 {[%clk 0:03:07.2]} 13... d4 {[%clk 0:02:58.1]} 14. c3 {[%clk
0:03:07.2]} 14... dxc3 {[%clk 0:02:55.2]} 15. dxc3 {[%clk 0:03:06.6]} 15... c4
{[%clk 0:02:32.6]} 16. bxc4 {[%clk 0:02:53.4]} 16... Bc5 {[%clk 0:02:28.7]} 17.
Nd4 {[%clk 0:02:54.2]} 17... Nb6 {[%clk 0:02:08.7]} 18. Ne3 {[%clk 0:02:47]}
18... Nxe3 {[%clk 0:02:04.5]} 19. Qxe3 {[%clk 0:02:47.3]} 19... Nxc4 {[%clk
0:02:02.2]} 20. Bxc4 {[%clk 0:02:47.7]} 20... bxc4 {[%clk 0:02:03.4]} 21. f5
{[%clk 0:02:32.8]} 21... Qd5 {[%clk 0:02:02.9]} 22. Qh3 {[%clk 0:02:26.5]} 22...
O-O-O {[%clk 0:01:57.6]} 23. Kh1 {[%clk 0:02:21.4]} 23... Bxd4 {[%clk
0:01:56.3]} 24. cxd4 {[%clk 0:02:20.5]} 24... Rd7 {[%clk 0:01:41.3]} 25. Bc3
{[%clk 0:02:20]} 25... Kb8 {[%clk 0:01:32.1]} 26. Rab1 {[%clk 0:02:17.1]} 26...
Ka8 {[%clk 0:01:31.9]} 27. Rb2 {[%clk 0:02:02.3]} 27... g5 {[%clk 0:01:24.2]}
28. fxg6 {[%clk 0:01:55.4]} 28... fxg6 {[%clk 0:01:26.1]} 29. Qe3 {[%clk
0:01:44.2]} 29... h4 {[%clk 0:00:56.3]} 30. h3 {[%clk 0:01:44.6]} 30... Qe4
{[%clk 0:00:46.9]} 31. Qxe4 {[%clk 0:01:42.7]} 31... Bxe4 {[%clk 0:00:48.7]} 32.
Rf4 {[%clk 0:01:36.1]} 32... Bd5 {[%clk 0:00:44.9]} 33. Rf6 {[%clk 0:01:32.9]}
33... Rg8 {[%clk 0:00:43.3]} 34. Rb6 {[%clk 0:01:10.1]} 34... Ka7 {[%clk
0:00:42.4]} 35. Rd6 {[%clk 0:01:07.9]} 35... Rb7 {[%clk 0:00:36]} 36. Kh2 {[%clk
0:01:04.3]} 36... g5 {[%clk 0:00:36.8]} 37. a3 {[%clk 0:00:50.6]} 37... g4
{[%clk 0:00:37.6]} 38. hxg4 {[%clk 0:00:52]} 38... Rxg4 {[%clk 0:00:38]} 39. Bb4
{[%clk 0:00:51.2]} 39... Rxg2+ {[%clk 0:00:38.7]} 40. Kh3 {[%clk 0:00:52.2]}
40... Rg3+ {[%clk 0:00:39]} 41. Kxh4 {[%clk 0:00:51.6]} 41... Rbg7 {[%clk
0:00:36.4]} 42. Rd7+ {[%clk 0:00:38.1]} 42... Kb6 {[%clk 0:00:35.1]} 43. Rxd5
{[%clk 0:00:31.1]} 43... Rg1 {[%clk 0:00:19.2]} 44. Rxe6+ {[%clk 0:00:29]} 44...
Kb7 {[%clk 0:00:20.5]} 45. Re7+ {[%clk 0:00:25.9]} 45... Rxe7 {[%clk 0:00:21.1]}
46. Bxe7 {[%clk 0:00:27.8]} 46... c3 {[%clk 0:00:21.7]} 47. Rc5 {[%clk
0:00:28.1]} 1-0

[Event "*** Titled Tuesday 3|2 Blitz (Early)"]
[Site "Chess.com"]
[Date "2016.11.01"]
[Round "2"]
[White "gmsakk"]
[Black "Salem-AR"]
[Result "1-0"]
[WhiteElo "2532"]
[BlackElo "2693"]
[TimeControl "180+2"]
[EndTime "11:22:26 PDT"]
[Termination "gmsakk won by resignation"]

1. d4 {[%clk 0:03:01.9]} 1... Nf6 {[%clk 0:03:00.3]} 2. Bg5 {[%clk 0:03:03]}
2... Ne4 {[%clk 0:03:01.1]} 3. Bf4 {[%clk 0:03:04.2]} 3... c5 {[%clk 0:03:02.4]}
4. f3 {[%clk 0:03:05.4]} 4... Qa5+ {[%clk 0:03:03.6]} 5. c3 {[%clk 0:03:06.8]}
5... Nf6 {[%clk 0:03:04]} 6. Nd2 {[%clk 0:03:08.4]} 6... cxd4 {[%clk 0:03:04.3]}
7. Nb3 {[%clk 0:03:09.6]} 7... Qd8 {[%clk 0:03:04.8]} 8. cxd4 {[%clk 0:03:10.4]}
8... d5 {[%clk 0:03:04.9]} 9. e3 {[%clk 0:03:10.5]} 9... Nc6 {[%clk 0:03:04.3]}
10. Bb5 {[%clk 0:02:50]} 10... Qb6 {[%clk 0:03:04.2]} 11. Bd3 {[%clk 0:02:38.3]}
11... Nb4 {[%clk 0:03:02.1]} 12. Bb1 {[%clk 0:02:35.6]} 12... e6 {[%clk
0:02:35.6]} 13. g4 {[%clk 0:02:35.1]} 13... Be7 {[%clk 0:02:36.3]} 14. Ne2
{[%clk 0:02:36.1]} 14... Bd7 {[%clk 0:02:37.1]} 15. a3 {[%clk 0:02:32.9]} 15...
Na6 {[%clk 0:02:33]} 16. Nc3 {[%clk 0:02:32.5]} 16... Rc8 {[%clk 0:02:31.1]} 17.
Kf2 {[%clk 0:02:26.6]} 17... O-O {[%clk 0:02:30.6]} 18. Bd3 {[%clk 0:02:26.4]}
18... Ne8 {[%clk 0:02:28.9]} 19. Rb1 {[%clk 0:02:15.1]} 19... Nd6 {[%clk
0:02:23.6]} 20. Nd2 {[%clk 0:02:14.4]} 20... Nb5 {[%clk 0:02:17.4]} 21. Nxb5
{[%clk 0:02:08.2]} 21... Bxb5 {[%clk 0:02:18]} 22. Qe2 {[%clk 0:02:08.1]} 22...
Bxd3 {[%clk 0:02:13.1]} 23. Qxd3 {[%clk 0:02:09.4]} 23... Qc6 {[%clk 0:02:05.5]}
24. Rbc1 {[%clk 0:01:39.6]} 24... Qa4 {[%clk 0:01:39.4]} 25. Qb3 {[%clk
0:01:35.5]} 25... Qd7 {[%clk 0:01:36.2]} 26. Nb1 {[%clk 0:01:13.8]} 26... b5
{[%clk 0:01:33.4]} 27. Qd3 {[%clk 0:01:11]} 27... Qb7 {[%clk 0:01:30.7]} 28. b4
{[%clk 0:01:10.3]} 28... Rc4 {[%clk 0:01:17.8]} 29. Nd2 {[%clk 0:01:10.2]} 29...
Rc6 {[%clk 0:01:19.5]} 30. Nb3 {[%clk 0:01:09.9]} 30... Rfc8 {[%clk 0:01:12.2]}
31. Rxc6 {[%clk 0:01:02.1]} 31... Qxc6 {[%clk 0:00:47.1]} 32. Rc1 {[%clk
0:01:02.5]} 32... Qd7 {[%clk 0:00:48.8]} 33. Rc3 {[%clk 0:00:33.6]} 33... h6
{[%clk 0:00:39.3]} 34. Qc2 {[%clk 0:00:33.4]} 34... Rxc3 {[%clk 0:00:27.2]} 35.
Qxc3 {[%clk 0:00:34.7]} 35... Qe8 {[%clk 0:00:24]} 36. Na5 {[%clk 0:00:34.1]}
36... g6 {[%clk 0:00:12.9]} 37. Qc6 {[%clk 0:00:34.7]} 37... Qxc6 {[%clk
0:00:11.9]} 38. Nxc6 {[%clk 0:00:35.8]} 38... Bh4+ {[%clk 0:00:12.7]} 39. Ke2
{[%clk 0:00:34.8]} 39... Kf8 {[%clk 0:00:08.4]} 40. Nxa7 {[%clk 0:00:35.9]}
40... Ke8 {[%clk 0:00:10]} 41. Nxb5 {[%clk 0:00:37.3]} 41... Kd7 {[%clk
0:00:11.6]} 42. Nc3 {[%clk 0:00:37.1]} 42... Be7 {[%clk 0:00:12]} 43. b5 {[%clk
0:00:37.7]} 43... Nc7 {[%clk 0:00:11.9]} 44. Bxc7 {[%clk 0:00:38.7]} 44... Kxc7
{[%clk 0:00:13.8]} 45. a4 {[%clk 0:00:38.4]} 45... Kb6 {[%clk 0:00:15.4]} 46.
Kd3 {[%clk 0:00:39]} 46... Ka5 {[%clk 0:00:17]} 47. Kc2 {[%clk 0:00:39.7]} 47...
Kb4 {[%clk 0:00:17.7]} 48. Kd3 {[%clk 0:00:39.7]} 48... Bd8 {[%clk 0:00:18.7]}
49. e4 {[%clk 0:00:40.9]} 49... dxe4+ {[%clk 0:00:16.9]} 50. fxe4 {[%clk
0:00:42.1]} 50... Bc7 {[%clk 0:00:18.5]} 51. h3 {[%clk 0:00:42.6]} 51... Kb3
{[%clk 0:00:19.5]} 52. d5 {[%clk 0:00:42.7]} 52... exd5 {[%clk 0:00:20.5]} 53.
Nxd5 {[%clk 0:00:43.9]} 53... Be5 {[%clk 0:00:19.3]} 54. a5 {[%clk 0:00:43.8]}
1-0

[Event "*** Titled Tuesday 3|2 Blitz (Early)"]
[Site "Chess.com"]
[Date "2016.11.01"]
[Round "2"]
[White "fireheart92"]
[Black "TomsKantans"]
[Result "1-0"]
[WhiteElo "2498"]
[BlackElo "2472"]
[TimeControl "180+2"]
[EndTime "11:22:37 PDT"]
[Termination "fireheart92 won by resignation"]

1. e4 {[%clk 0:03:02]} 1... c5 {[%clk 0:03:00.1]} 2. Nf3 {[%clk 0:03:03.2]} 2...
Nf6 {[%clk 0:03:01.6]} 3. e5 {[%clk 0:03:03.8]} 3... Nd5 {[%clk 0:03:03.1]} 4.
Nc3 {[%clk 0:03:05.5]} 4... e6 {[%clk 0:03:04.7]} 5. Nxd5 {[%clk 0:03:03.5]}
5... exd5 {[%clk 0:03:06.6]} 6. d4 {[%clk 0:03:02.2]} 6... Nc6 {[%clk
0:03:06.6]} 7. c3 {[%clk 0:03:02.7]} 7... d6 {[%clk 0:03:06]} 8. Bb5 {[%clk
0:02:50.7]} 8... Be7 {[%clk 0:03:06.1]} 9. exd6 {[%clk 0:02:51.2]} 9... Bxd6
{[%clk 0:03:08]} 10. Qe2+ {[%clk 0:02:47.7]} 10... Qe7 {[%clk 0:03:03.9]} 11.
Qxe7+ {[%clk 0:02:45.6]} 11... Kxe7 {[%clk 0:03:01.9]} 12. dxc5 {[%clk
0:02:42.2]} 12... Bxc5 {[%clk 0:03:02.1]} 13. Bf4 {[%clk 0:02:43.1]} 13... a6
{[%clk 0:02:54.6]} 14. Ba4 {[%clk 0:02:40.3]} 14... Be6 {[%clk 0:02:52]} 15. O-O
{[%clk 0:02:37.1]} 15... Rhd8 {[%clk 0:02:51.2]} 16. Rfe1 {[%clk 0:02:32.7]}
16... h6 {[%clk 0:02:39.4]} 17. Rad1 {[%clk 0:02:30.6]} 17... Rac8 {[%clk
0:02:18.4]} 18. Be3 {[%clk 0:02:22.1]} 18... Bxe3 {[%clk 0:02:06.5]} 19. Rxe3
{[%clk 0:02:23.2]} 19... Na5 {[%clk 0:02:07.1]} 20. Nd4 {[%clk 0:02:22.5]} 20...
Nc4 {[%clk 0:02:04.1]} 21. Re2 {[%clk 0:02:22.9]} 21... Kf6 {[%clk 0:01:15.3]}
22. f3 {[%clk 0:02:13.3]} 22... Bd7 {[%clk 0:01:09.7]} 23. Bb3 {[%clk
0:01:42.5]} 23... Re8 {[%clk 0:01:10.1]} 24. Bxc4 {[%clk 0:01:38.6]} 24... dxc4
{[%clk 0:01:11.2]} 25. Kf2 {[%clk 0:01:40.3]} 25... Rxe2+ {[%clk 0:01:02.8]} 26.
Nxe2 {[%clk 0:01:41.8]} 26... Bc6 {[%clk 0:00:57]} 27. h4 {[%clk 0:01:38.7]}
27... Ke5 {[%clk 0:00:49.9]} 28. Rd4 {[%clk 0:01:37.3]} 28... b5 {[%clk
0:00:48.5]} 29. h5 {[%clk 0:01:20.2]} 29... g6 {[%clk 0:00:24.8]} 30. hxg6
{[%clk 0:00:56]} 30... fxg6 {[%clk 0:00:26.7]} 31. Rd1 {[%clk 0:00:46.8]} 31...
Rc7 {[%clk 0:00:17.7]} 32. Rd8 {[%clk 0:00:43.8]} 32... Rd7 {[%clk 0:00:18]} 33.
Nd4 {[%clk 0:00:45.6]} 33... Kd6 {[%clk 0:00:10.2]} 34. Rg8 {[%clk 0:00:45.5]}
34... Bd5 {[%clk 0:00:10.6]} 35. Rxg6+ {[%clk 0:00:46.5]} 35... Kc5 {[%clk
0:00:12.5]} 36. Rxa6 {[%clk 0:00:44.1]} 36... h5 {[%clk 0:00:13.5]} 37. Rh6
{[%clk 0:00:39.8]} 37... b4 {[%clk 0:00:13.6]} 38. Rxh5 {[%clk 0:00:39.2]} 38...
bxc3 {[%clk 0:00:14.5]} 39. bxc3 {[%clk 0:00:40.6]} 39... Ra7 {[%clk 0:00:16.4]}
40. Ne2 {[%clk 0:00:35.9]} 40... Rxa2 {[%clk 0:00:16.6]} 41. Ke3 {[%clk
0:00:37.5]} 41... Kd6 {[%clk 0:00:16.4]} 42. Rh6+ {[%clk 0:00:38.9]} 42... Ke7
{[%clk 0:00:16.4]} 43. g4 {[%clk 0:00:39.3]} 43... Rc2 {[%clk 0:00:13.4]} 44.
Rb6 {[%clk 0:00:35.2]} 44... Kf7 {[%clk 0:00:09.6]} 45. g5 {[%clk 0:00:33.4]}
45... Kg7 {[%clk 0:00:09.8]} 46. f4 {[%clk 0:00:34.7]} 46... Bf7 {[%clk
0:00:10.5]} 47. Rb7 {[%clk 0:00:34.1]} 47... Kf8 {[%clk 0:00:11.5]} 48. f5
{[%clk 0:00:32.6]} 48... Bh5 {[%clk 0:00:12.6]} 49. Nf4 {[%clk 0:00:34.2]} 49...
Bg4 {[%clk 0:00:11.9]} 50. Ng6+ {[%clk 0:00:29.7]} 50... Ke8 {[%clk 0:00:11.8]}
51. f6 {[%clk 0:00:24.5]} 51... Rxc3+ {[%clk 0:00:12.9]} 52. Kd4 {[%clk
0:00:26.2]} 52... Rf3 {[%clk 0:00:13.7]} 53. Rb8+ {[%clk 0:00:25.5]} 53... Kf7
{[%clk 0:00:12.4]} 54. Ne5+ {[%clk 0:00:26.9]} 1-0

[Event "*** Titled Tuesday 3|2 Blitz (Early)"]
[Site "Chess.com"]
[Date "2016.11.01"]
[Round "2"]
[White "Alohamora11"]
[Black "oskariot"]
[Result "1-0"]
[WhiteElo "2234"]
[BlackElo "2395"]
[TimeControl "180+2"]
[EndTime "11:22:53 PDT"]
[Termination "Alohamora11 won by resignation"]

1. e4 {[%clk 0:02:58.8]} 1... c5 {[%clk 0:03:00.6]} 2. Nf3 {[%clk 0:02:57]} 2...
d6 {[%clk 0:02:48.9]} 3. d4 {[%clk 0:02:57.2]} 3... cxd4 {[%clk 0:02:47.8]} 4.
Nxd4 {[%clk 0:02:59.1]} 4... Nf6 {[%clk 0:02:49.1]} 5. Nc3 {[%clk 0:03:00.3]}
5... Nc6 {[%clk 0:02:50.8]} 6. Bc4 {[%clk 0:02:59.1]} 6... Qb6 {[%clk
0:02:50.4]} 7. Nb3 {[%clk 0:02:43.9]} 7... e6 {[%clk 0:02:51.4]} 8. Be3 {[%clk
0:02:44.4]} 8... Qc7 {[%clk 0:02:52.7]} 9. Qe2 {[%clk 0:02:44.1]} 9... a6 {[%clk
0:02:53.7]} 10. a4 {[%clk 0:02:44.4]} 10... Na5 {[%clk 0:02:41.9]} 11. Nxa5
{[%clk 0:02:28.7]} 11... Qxa5 {[%clk 0:02:43]} 12. O-O {[%clk 0:02:27.9]} 12...
Be7 {[%clk 0:02:44.2]} 13. Rad1 {[%clk 0:02:04.6]} 13... O-O {[%clk 0:02:44.8]}
14. f4 {[%clk 0:02:03.3]} 14... Bd7 {[%clk 0:02:44.7]} 15. Bd4 {[%clk
0:01:58.3]} 15... Bc6 {[%clk 0:02:38]} 16. f5 {[%clk 0:01:37.9]} 16... e5 {[%clk
0:01:11.5]} 17. Bf2 {[%clk 0:01:29.9]} 17... Qb4 {[%clk 0:01:02.9]} 18. Qd3
{[%clk 0:01:03.4]} 18... Rfd8 {[%clk 0:00:51.2]} 19. b3 {[%clk 0:00:58.3]} 19...
Rac8 {[%clk 0:00:44.1]} 20. Bh4 {[%clk 0:00:51.2]} 20... b5 {[%clk 0:00:36.3]}
21. axb5 {[%clk 0:00:30.5]} 21... axb5 {[%clk 0:00:37.6]} 22. Nxb5 {[%clk
0:00:27.7]} 22... Bxe4 {[%clk 0:00:36.5]} 23. Qd2 {[%clk 0:00:21.8]} 23... Qxd2
{[%clk 0:00:29.9]} 24. Rxd2 {[%clk 0:00:23.7]} 24... d5 {[%clk 0:00:31.5]} 25.
Bxf6 {[%clk 0:00:24.2]} 25... Bxf6 {[%clk 0:00:31.9]} 26. Be2 {[%clk 0:00:25.1]}
26... Be7 {[%clk 0:00:32.7]} 27. c4 {[%clk 0:00:25.1]} 27... Bc5+ {[%clk
0:00:33.9]} 28. Kh1 {[%clk 0:00:25.3]} 28... Be3 {[%clk 0:00:35.2]} 29. Rdd1
{[%clk 0:00:26.3]} 29... d4 {[%clk 0:00:36.5]} 30. Bd3 {[%clk 0:00:26.5]} 30...
Bxd3 {[%clk 0:00:37.8]} 31. Rxd3 {[%clk 0:00:28.4]} 31... e4 {[%clk 0:00:39.4]}
32. Rdd1 {[%clk 0:00:28.4]} 32... Ra8 {[%clk 0:00:38.3]} 33. Nc7 {[%clk
0:00:27.5]} 33... d3 {[%clk 0:00:37]} 34. Nxa8 {[%clk 0:00:25.6]} 34... Rxa8
{[%clk 0:00:38]} 35. Rfe1 {[%clk 0:00:26.7]} 35... Bh6 {[%clk 0:00:17]} 36. Rxe4
{[%clk 0:00:27.2]} 36... d2 {[%clk 0:00:16.9]} 37. Rd4 {[%clk 0:00:21.2]} 37...
f6 {[%clk 0:00:18]} 38. g4 {[%clk 0:00:21]} 38... Ra2 {[%clk 0:00:19.3]} 39. b4
{[%clk 0:00:21.1]} 39... Rc2 {[%clk 0:00:20.5]} 40. Kg2 {[%clk 0:00:21.8]} 40...
Rc1 {[%clk 0:00:21.7]} 41. R1xd2 {[%clk 0:00:23.1]} 41... Bxd2 {[%clk
0:00:23.1]} 42. Rxd2 {[%clk 0:00:25]} 42... Rxc4 {[%clk 0:00:25]} 43. Rb2 {[%clk
0:00:26.2]} 43... Rxg4+ {[%clk 0:00:26.2]} 44. Kf3 {[%clk 0:00:27.8]} 44... Rg5
{[%clk 0:00:27]} 45. Ke4 {[%clk 0:00:29.2]} 45... Rg4+ {[%clk 0:00:26]} 46. Kd5
{[%clk 0:00:30.3]} 46... Kf7 {[%clk 0:00:27.6]} 47. b5 {[%clk 0:00:31.4]} 47...
Rf4 {[%clk 0:00:29]} 48. b6 {[%clk 0:00:32.3]} 48... Rxf5+ {[%clk 0:00:30.5]}
49. Kc6 {[%clk 0:00:33.7]} 49... Re5 {[%clk 0:00:30.4]} 50. b7 {[%clk
0:00:35.2]} 50... Re8 {[%clk 0:00:31.7]} 51. b8=Q {[%clk 0:00:36.4]} 51... Rxb8
{[%clk 0:00:33.2]} 52. Rxb8 {[%clk 0:00:38]} 52... f5 {[%clk 0:00:32.6]} 53. Kd5
{[%clk 0:00:38.8]} 53... Kf6 {[%clk 0:00:34.1]} 54. Kd4 {[%clk 0:00:39.8]} 54...
Kg5 {[%clk 0:00:35.4]} 55. Ke3 {[%clk 0:00:41]} 55... g6 {[%clk 0:00:36.7]} 56.
Kf3 {[%clk 0:00:41.8]} 56... h5 {[%clk 0:00:37.6]} 57. Rb4 {[%clk 0:00:42.4]}
57... Kf6 {[%clk 0:00:38.3]} 58. h4 {[%clk 0:00:40.1]} 1-0

[Event "*** Titled Tuesday 3|2 Blitz (Early)"]
[Site "Chess.com"]
[Date "2016.11.01"]
[Round "2"]
[White "GMBenjaminBok"]
[Black "VMikhalevski"]
[Result "1/2-1/2"]
[WhiteElo "2599"]
[BlackElo "2505"]
[TimeControl "180+2"]
[EndTime "11:22:56 PDT"]
[Termination "Game drawn by agreement"]

1. d4 {[%clk 0:03:02]} 1... Nf6 {[%clk 0:03:00.4]} 2. c4 {[%clk 0:03:03.3]} 2...
g6 {[%clk 0:03:01.1]} 3. g3 {[%clk 0:03:04.5]} 3... c6 {[%clk 0:02:55.8]} 4. Nf3
{[%clk 0:03:05.3]} 4... d5 {[%clk 0:02:56.7]} 5. b3 {[%clk 0:03:06.6]} 5... Bg7
{[%clk 0:02:57.2]} 6. Bg2 {[%clk 0:03:07.9]} 6... O-O {[%clk 0:02:58.7]} 7. O-O
{[%clk 0:03:08.9]} 7... Ne4 {[%clk 0:02:55.6]} 8. Bb2 {[%clk 0:03:08.9]} 8...
Bf5 {[%clk 0:02:56.3]} 9. e3 {[%clk 0:03:09.2]} 9... a5 {[%clk 0:02:52.3]} 10.
Nc3 {[%clk 0:03:05.9]} 10... Nxc3 {[%clk 0:02:45.4]} 11. Bxc3 {[%clk 0:03:07.8]}
11... Be4 {[%clk 0:02:47.1]} 12. Qe2 {[%clk 0:03:09.1]} 12... Nd7 {[%clk
0:02:44.7]} 13. Rfc1 {[%clk 0:03:05.2]} 13... Qb6 {[%clk 0:02:39.3]} 14. Bh3
{[%clk 0:02:16.6]} 14... Bxf3 {[%clk 0:02:38.8]} 15. Qxf3 {[%clk 0:02:17.2]}
15... e6 {[%clk 0:02:40.4]} 16. cxd5 {[%clk 0:02:06]} 16... cxd5 {[%clk
0:02:39.5]} 17. Be1 {[%clk 0:02:07.4]} 17... Nb8 {[%clk 0:02:33.3]} 18. Bf1
{[%clk 0:02:04.7]} 18... Nc6 {[%clk 0:02:33.5]} 19. Qe2 {[%clk 0:02:05.1]} 19...
Rfc8 {[%clk 0:02:30.6]} 20. Qb5 {[%clk 0:02:05.4]} 20... Qxb5 {[%clk 0:02:23.5]}
21. Bxb5 {[%clk 0:02:07.3]} 21... Bf8 {[%clk 0:02:18.8]} 22. a3 {[%clk
0:02:01.4]} 22... h5 {[%clk 0:02:13]} 23. Rc2 {[%clk 0:01:55.7]} 23... Nxd4
{[%clk 0:02:03.4]} 24. Rxc8 {[%clk 0:01:47.9]} 24... Nf3+ {[%clk 0:02:04.2]} 25.
Kh1 {[%clk 0:01:35.6]} 25... Rxc8 {[%clk 0:02:04.1]} 26. Bxa5 {[%clk 0:01:37.5]}
26... Rc2 {[%clk 0:01:51.3]} 27. Kg2 {[%clk 0:01:36.9]} 27... Ne5 {[%clk
0:01:46.5]} 28. h3 {[%clk 0:01:26.4]} 28... Bc5 {[%clk 0:01:45.8]} 29. Kf1
{[%clk 0:01:08.7]} 29... b6 {[%clk 0:01:36.9]} 30. Be1 {[%clk 0:01:03.8]} 30...
Nf3 {[%clk 0:01:34.6]} 31. b4 {[%clk 0:00:41.6]} 31... Bd6 {[%clk 0:01:29.2]}
32. Bd3 {[%clk 0:00:27.8]} 32... Nxe1 {[%clk 0:01:10.1]} 33. Bxc2 {[%clk
0:00:28.2]} 33... Nxc2 {[%clk 0:01:11.2]} 34. Ra2 {[%clk 0:00:29.7]} 34... Nxb4
{[%clk 0:01:12.7]} 35. axb4 {[%clk 0:00:30.8]} 35... Bxb4 {[%clk 0:01:14.3]} 36.
Ra7 {[%clk 0:00:30.7]} 36... Kg7 {[%clk 0:01:12.6]} 37. Rb7 {[%clk 0:00:32.1]}
37... Bc5 {[%clk 0:01:12.5]} 38. Ke2 {[%clk 0:00:32.7]} 38... Kf6 {[%clk
0:01:09]} 39. f4 {[%clk 0:00:33.6]} 39... Kg7 {[%clk 0:01:05.4]} 40. g4 {[%clk
0:00:34.4]} 40... hxg4 {[%clk 0:01:05.5]} 41. hxg4 {[%clk 0:00:36.3]} 41... Kf6
{[%clk 0:01:05.1]} 42. Kf3 {[%clk 0:00:37.4]} 42... Kg7 {[%clk 0:01:04.9]} 43.
g5 {[%clk 0:00:27.5]} 43... Kf8 {[%clk 0:01:04.1]} 44. Rb8+ {[%clk 0:00:16.6]}
44... Kg7 {[%clk 0:01:04.7]} 45. Rb7 {[%clk 0:00:11.2]} 45... Kg8 {[%clk
0:01:04.8]} 46. Rd7 {[%clk 0:00:12]} 46... Kf8 {[%clk 0:01:03.6]} 47. Rc7 {[%clk
0:00:10.8]} 47... Kg7 {[%clk 0:01:03.1]} 48. Rc8 {[%clk 0:00:08.6]} 48... Kh7
{[%clk 0:01:03]} 49. Rb8 {[%clk 0:00:07.8]} 49... Kg7 {[%clk 0:00:58.3]} 50. e4
{[%clk 0:00:05.2]} 50... dxe4+ {[%clk 0:00:58.3]} 51. Kxe4 {[%clk 0:00:07.1]}
51... Bf2 {[%clk 0:00:58.4]} 52. Rb7 {[%clk 0:00:08.1]} 52... Bg1 {[%clk
0:00:56.5]} 53. Rb8 {[%clk 0:00:09.1]} 53... Bf2 {[%clk 0:00:56.8]} 54. Rb7
{[%clk 0:00:10.2]} 54... Bg1 {[%clk 0:00:56.5]} 55. Ke5 {[%clk 0:00:11.5]} 55...
Bc5 {[%clk 0:00:56.3]} 56. Rb8 {[%clk 0:00:11.8]} 56... Be3 {[%clk 0:00:56.6]}
57. Ke4 {[%clk 0:00:12.7]} 57... Bc5 {[%clk 0:00:54.9]} 58. Rb7 {[%clk
0:00:12.5]} 58... Kg8 {[%clk 0:00:55]} 59. Rb8+ {[%clk 0:00:13.5]} 59... Kg7
{[%clk 0:00:56.1]} 60. Rb7 {[%clk 0:00:15]} 1/2-1/2